[Event "Titled Tuesday Blitz November 14 Early 2023"]
[White "Atakhan, Abtin"]
[Black "Ambartsumova, Karina"]
[WhiteFideId "22502203"]
[BlackFideId "4166299"]
[WhiteElo "2754"]
[BlackElo "2610"]
[Result "0-1"]
[Round "11"]
[TimeControl "180+1"]
[Date "2023.11.14"]
[WhiteClock "0:00:00"]
[BlackClock "0:00:06"]
[Board "34"]

1. c4 {[%clk 0:03:00]}  e6 {[%clk 0:02:57]} 2. Nc3 {[%clk 0:02:59]}  d5 {[%clk 0:02:57]} 3. d4 {[%clk 0:03:00]}  Nf6 {[%clk 0:02:57]} 4. cxd5 {[%clk 0:03:00]}  exd5 {[%clk 0:02:58]} 5. Bg5 {[%clk 0:03:00]}  c6 {[%clk 0:02:58]} 6. e3 {[%clk 0:03:01]}  Be7 {[%clk 0:02:58]} 7. Bd3 {[%clk 0:03:01]}  Nbd7 {[%clk 0:02:58]} 8. Qc2 {[%clk 0:03:00]}  h6 {[%clk 0:02:59]} 9. Bh4 {[%clk 0:02:59]}  Nh5 {[%clk 0:02:59]} 10. Bxe7 {[%clk 0:02:55]}  Qxe7 {[%clk 0:03:00]} 11. Nge2 {[%clk 0:02:51]}  Nb6 {[%clk 0:03:00]} 12. O-O-O {[%clk 0:02:45]}  Bd7 {[%clk 0:02:58]} 13. Kb1 {[%clk 0:02:44]}  O-O-O {[%clk 0:02:58]} 14. h3 {[%clk 0:02:42]}  Kb8 {[%clk 0:02:57]} 15. g4 {[%clk 0:02:39]}  Nf6 {[%clk 0:02:57]} 16. Ng3 {[%clk 0:02:39]}  g6 {[%clk 0:02:54]} 17. Ka1 {[%clk 0:02:37]}  Rhe8 {[%clk 0:02:51]} 18. Rb1 {[%clk 0:02:35]}  c5 {[%clk 0:02:44]} 19. dxc5 {[%clk 0:02:32]}  Qxc5 {[%clk 0:02:45]} 20. Nge2 {[%clk 0:02:29]}  Rc8 {[%clk 0:02:35]} 21. Nd4 {[%clk 0:02:19]}  Nc4 {[%clk 0:02:29]} 22. Rhc1 {[%clk 0:02:11]}  Ne5 {[%clk 0:02:20]} 23. Bf1 {[%clk 0:02:05]}  a6 {[%clk 0:01:49]} 24. Qb3 {[%clk 0:01:56]}  Qa5 {[%clk 0:01:41]} 25. Rd1 {[%clk 0:01:44]}  Ka8 {[%clk 0:01:34]} 26. Bg2 {[%clk 0:01:43]}  Nc4 {[%clk 0:01:10]} 27. Rbc1 {[%clk 0:01:38]}  Nb6 {[%clk 0:01:09]} 28. Nde2 {[%clk 0:01:24]}  Rc5 {[%clk 0:01:08]} 29. Nf4 {[%clk 0:01:11]}  Rec8 {[%clk 0:01:07]} 30. Rb1 {[%clk 0:01:03]}  g5 {[%clk 0:00:53]} 31. Nd3 {[%clk 0:00:55]}  R5c7 {[%clk 0:00:53]} 32. Qb4 {[%clk 0:00:51]}  Qxb4 {[%clk 0:00:44]} 33. Nxb4 {[%clk 0:00:52]}  Be6 {[%clk 0:00:42]} 34. a3 {[%clk 0:00:36]}  Rc5 {[%clk 0:00:33]} 35. Rd4 {[%clk 0:00:32]}  a5 {[%clk 0:00:26]} 36. Nd3 {[%clk 0:00:28]}  Rc4 {[%clk 0:00:26]} 37. Nb5 {[%clk 0:00:21]}  Rxd4 {[%clk 0:00:19]} 38. Nxd4 {[%clk 0:00:22]}  Bd7 {[%clk 0:00:16]} 39. Rc1 {[%clk 0:00:19]}  Rxc1+ {[%clk 0:00:16]} 40. Nxc1 {[%clk 0:00:20]}  Be6 {[%clk 0:00:16]} 41. Nd3 {[%clk 0:00:17]}  Kb8 {[%clk 0:00:16]} 42. Nc5 {[%clk 0:00:17]}  Bc8 {[%clk 0:00:16]} 43. Ndb3 {[%clk 0:00:17]}  a4 {[%clk 0:00:16]} 44. Nd4 {[%clk 0:00:18]}  Kc7 {[%clk 0:00:17]} 45. Bf1 {[%clk 0:00:12]}  Kd6 {[%clk 0:00:17]} 46. Nd3 {[%clk 0:00:11]}  Bd7 {[%clk 0:00:17]} 47. Bg2 {[%clk 0:00:10]}  Ne4 {[%clk 0:00:17]} 48. Kb1 {[%clk 0:00:09]}  Nc5 {[%clk 0:00:11]} 49. Kc2 {[%clk 0:00:05]}  Nc4 {[%clk 0:00:10]} 50. Nxc5 {[%clk 0:00:05]}  Kxc5 {[%clk 0:00:11]} 51. Ne2 {[%clk 0:00:04]}  Ne5 {[%clk 0:00:10]} 52. Nc3 {[%clk 0:00:03]}  Bc6 {[%clk 0:00:10]} 53. Ne2 {[%clk 0:00:02]}  Nc4 {[%clk 0:00:10]} 54. Nd4 {[%clk 0:00:02]}  Nd6 {[%clk 0:00:10]} 55. Bf1 {[%clk 0:00:03]}  Bd7 {[%clk 0:00:09]} 56. Bd3 {[%clk 0:00:03]}  b6 {[%clk 0:00:09]} 57. Nf3 {[%clk 0:00:03]}  Be6 {[%clk 0:00:09]} 58. Ne5 {[%clk 0:00:03]}  Ne8 {[%clk 0:00:05]} 59. Be2 {[%clk 0:00:02]}  Nd6 {[%clk 0:00:06]} 60. Bf3 {[%clk 0:00:02]}  Ne8 {[%clk 0:00:05]} 61. Kc3 {[%clk 0:00:02]}  Nd6 {[%clk 0:00:05]} 62. Nd3+ {[%clk 0:00:03]}  Kc6 {[%clk 0:00:05]} 63. Nb4+ {[%clk 0:00:03]}  Kc5 {[%clk 0:00:06]} 64. Be2 {[%clk 0:00:02]}  Ne4+ {[%clk 0:00:06]} 65. Kc2 {[%clk 0:00:02]}  Nxf2 {[%clk 0:00:07]} 66. Nd3+ {[%clk 0:00:01]}  Nxd3 {[%clk 0:00:06]} 67. Kxd3 {[%clk 0:00:02]}  Bd7 {[%clk 0:00:05]} 68. Bf3 {[%clk 0:00:02]}  f6 {[%clk 0:00:05]} 69. Kc3 {[%clk 0:00:02]}  Bb5 {[%clk 0:00:06]} 70. Bg2 {[%clk 0:00:03]}  Bd7 {[%clk 0:00:06]} 71. Kd3 {[%clk 0:00:03]}  Bc6 {[%clk 0:00:06]} 72. Bf3 {[%clk 0:00:02]}  Bb5+ {[%clk 0:00:06]} 73. Kc3 {[%clk 0:00:02]}  Bf1 {[%clk 0:00:07]} 74. Bd1 {[%clk 0:00:01]}  Bxh3 {[%clk 0:00:06]} 75. Kd3 {[%clk 0:00:02]}  b5 {[%clk 0:00:05]} 76. Bf3 {[%clk 0:00:01]}  Bf1+ {[%clk 0:00:05]} 77. Kc3 {[%clk 0:00:01]}  Bc4 {[%clk 0:00:05]} 78. Kd2 {[%clk 0:00:01]}  d4 {[%clk 0:00:05]} 79. exd4+ {[%clk 0:00:02]}  Kxd4 {[%clk 0:00:06]} 80. Bc6 {[%clk 0:00:02]}  Ke5 {[%clk 0:00:06]} 81. Ke3 {[%clk 0:00:02]}  f5 {[%clk 0:00:06]} 82. gxf5 {[%clk 0:00:02]}  Kxf5 {[%clk 0:00:07]} 83. Bd7+ {[%clk 0:00:03]}  Ke5 {[%clk 0:00:07]} 84. Bg4 {[%clk 0:00:04]}  Bf7 {[%clk 0:00:06]} 85. Be2 {[%clk 0:00:00]}  Be8 {[%clk 0:00:06]} 0-1


[Site "https://www.chess.com"]

[Event "Titled Tuesday Blitz November 14 Early 2023"]
[White "Duda, Jan-Krzysztof"]
[Black "Sousa, Andre Ventura"]
[WhiteFideId "1170546"]
[BlackFideId "1917617"]
[WhiteElo "3062"]
[BlackElo "2657"]
[Result "0-1"]
[Round "11"]
[TimeControl "180+1"]
[Date "2023.11.14"]
[WhiteClock "0:00:00"]
[BlackClock "0:00:36"]
[Board "35"]

1. e4 {[%clk 0:03:00]}  e5 {[%clk 0:03:00]} 2. Nf3 {[%clk 0:03:00]}  Nc6 {[%clk 0:03:00]} 3. Bc4 {[%clk 0:03:00]}  Nf6 {[%clk 0:03:00]} 4. Ng5 {[%clk 0:02:59]}  d5 {[%clk 0:03:01]} 5. exd5 {[%clk 0:03:00]}  Na5 {[%clk 0:03:01]} 6. Bb5+ {[%clk 0:03:00]}  c6 {[%clk 0:03:02]} 7. dxc6 {[%clk 0:02:59]}  bxc6 {[%clk 0:03:03]} 8. Bd3 {[%clk 0:02:58]}  Nd5 {[%clk 0:03:02]} 9. Nf3 {[%clk 0:02:56]}  Bd6 {[%clk 0:03:02]} 10. O-O {[%clk 0:02:56]}  O-O {[%clk 0:03:03]} 11. Re1 {[%clk 0:02:48]}  f5 {[%clk 0:03:03]} 12. Nxe5 {[%clk 0:02:47]}  Qf6 {[%clk 0:03:03]} 13. Nf3 {[%clk 0:02:46]}  g5 {[%clk 0:03:03]} 14. c4 {[%clk 0:02:42]}  Nf4 {[%clk 0:03:02]} 15. Bf1 {[%clk 0:02:42]}  g4 {[%clk 0:03:02]} 16. d4 {[%clk 0:02:41]}  gxf3 {[%clk 0:03:02]} 17. Qxf3 {[%clk 0:02:40]}  Ne6 {[%clk 0:03:02]} 18. Qc3 {[%clk 0:02:28]}  Nxd4 {[%clk 0:03:01]} 19. c5 {[%clk 0:02:13]}  Bc7 {[%clk 0:02:57]} 20. b4 {[%clk 0:02:10]}  Rb8 {[%clk 0:02:58]} 21. Bb2 {[%clk 0:01:53]}  Rxb4 {[%clk 0:02:57]} 22. Qxb4 {[%clk 0:01:36]}  Bxh2+ {[%clk 0:02:57]} 23. Kxh2 {[%clk 0:01:37]}  Qh4+ {[%clk 0:02:56]} 24. Kg1 {[%clk 0:01:37]}  Nf3+ {[%clk 0:02:57]} 25. gxf3 {[%clk 0:01:38]}  Qxb4 {[%clk 0:02:57]} 26. Bc3 {[%clk 0:01:38]}  Qh4 {[%clk 0:02:36]} 27. Nd2 {[%clk 0:01:13]}  Qg5+ {[%clk 0:02:12]} 28. Kh1 {[%clk 0:01:13]}  Qh6+ {[%clk 0:02:02]} 29. Kg1 {[%clk 0:01:13]}  Be6 {[%clk 0:01:52]} 30. Bxa5 {[%clk 0:00:54]}  Rf6 {[%clk 0:01:32]} 31. Bg2 {[%clk 0:00:54]}  Rg6 {[%clk 0:01:26]} 32. Rxe6 {[%clk 0:00:41]}  Rxe6 {[%clk 0:01:27]} 33. Rb1 {[%clk 0:00:37]}  Rg6 {[%clk 0:01:06]} 34. Nf1 {[%clk 0:00:34]}  f4 {[%clk 0:00:59]} 35. Rb8+ {[%clk 0:00:24]}  Kf7 {[%clk 0:00:59]} 36. Nh2 {[%clk 0:00:08]}  Qg5 {[%clk 0:00:57]} 37. Ng4 {[%clk 0:00:08]}  h5 {[%clk 0:00:57]} 38. Bf1 {[%clk 0:00:09]}  hxg4 {[%clk 0:00:51]} 39. Bc4+ {[%clk 0:00:08]}  Re6 {[%clk 0:00:42]} 40. Rb7+ {[%clk 0:00:07]}  Kf8 {[%clk 0:00:39]} 41. Bxe6 {[%clk 0:00:04]}  gxf3+ {[%clk 0:00:39]} 42. Kf1 {[%clk 0:00:04]}  Qg2+ {[%clk 0:00:38]} 43. Ke1 {[%clk 0:00:05]}  Qg1+ {[%clk 0:00:39]} 44. Kd2 {[%clk 0:00:05]}  Qxf2+ {[%clk 0:00:40]} 45. Kd3 {[%clk 0:00:03]}  Qe3+ {[%clk 0:00:39]} 46. Kc2 {[%clk 0:00:03]}  Qxe6 {[%clk 0:00:36]} 47. Rb8+ {[%clk 0:00:02]}  Kf7 {[%clk 0:00:36]} 48. Rb7+ {[%clk 0:00:00]}  Kg6 {[%clk 0:00:36]} 0-1


[Site "https://www.chess.com"]

[Event "Titled Tuesday Blitz November 14 Early 2023"]
[White "AlmasRakhmatullaev"]
[Black "DavitSantryan02"]
[WhiteElo "2859"]
[BlackElo "2225"]
[Result "1-0"]
[Round "11"]
[TimeControl "180+1"]
[Date "2023.11.14"]
[WhiteClock "0:00:11"]
[BlackClock "0:00:05"]
[Board "36"]

1. e4 {[%clk 0:02:59]}  c5 {[%clk 0:02:59]} 2. Nf3 {[%clk 0:02:59]}  Nc6 {[%clk 0:03:00]} 3. Bb5 {[%clk 0:02:58]}  e6 {[%clk 0:03:00]} 4. Bxc6 {[%clk 0:02:53]}  bxc6 {[%clk 0:03:00]} 5. d3 {[%clk 0:02:37]}  Ne7 {[%clk 0:02:44]} 6. O-O {[%clk 0:02:35]}  Ng6 {[%clk 0:02:42]} 7. Nbd2 {[%clk 0:02:32]}  e5 {[%clk 0:02:34]} 8. c3 {[%clk 0:02:23]}  Be7 {[%clk 0:02:30]} 9. d4 {[%clk 0:02:21]}  cxd4 {[%clk 0:02:28]} 10. cxd4 {[%clk 0:02:22]}  exd4 {[%clk 0:02:03]} 11. Nxd4 {[%clk 0:02:22]}  O-O {[%clk 0:02:01]} 12. Re1 {[%clk 0:02:22]}  Bf6 {[%clk 0:01:57]} 13. N2f3 {[%clk 0:02:14]}  Re8 {[%clk 0:01:47]} 14. Rb1 {[%clk 0:02:03]}  Rb8 {[%clk 0:01:35]} 15. b3 {[%clk 0:02:01]}  c5 {[%clk 0:01:27]} 16. e5 {[%clk 0:01:38]}  Nxe5 {[%clk 0:01:08]} 17. Nxe5 {[%clk 0:01:37]}  cxd4 {[%clk 0:00:44]} 18. Bf4 {[%clk 0:01:35]}  Rb5 {[%clk 0:00:25]} 19. Nc4 {[%clk 0:01:27]}  Rxe1+ {[%clk 0:00:14]} 20. Qxe1 {[%clk 0:01:27]}  d5 {[%clk 0:00:11]} 21. Nd6 {[%clk 0:01:27]}  Rb6 {[%clk 0:00:11]} 22. Rc1 {[%clk 0:01:20]}  Be6 {[%clk 0:00:08]} 23. Nc8 {[%clk 0:00:16]}  Bxc8 {[%clk 0:00:08]} 24. Bc7 {[%clk 0:00:17]}  Qd7 {[%clk 0:00:06]} 25. Bxb6 {[%clk 0:00:17]}  axb6 {[%clk 0:00:07]} 26. Qb4 {[%clk 0:00:18]}  h6 {[%clk 0:00:05]} 27. Qxb6 {[%clk 0:00:17]}  Kh7 {[%clk 0:00:02]} 28. a4 {[%clk 0:00:17]}  Qg4 {[%clk 0:00:02]} 29. h3 {[%clk 0:00:15]}  Qg5 {[%clk 0:00:02]} 30. Rxc8 {[%clk 0:00:14]}  d3 {[%clk 0:00:01]} 31. Qe3 {[%clk 0:00:14]}  d2 {[%clk 0:00:02]} 32. Qd3+ {[%clk 0:00:09]}  Qg6 {[%clk 0:00:02]} 33. Qxd2 {[%clk 0:00:08]}  Bg5 {[%clk 0:00:02]} 34. Qc2 {[%clk 0:00:08]}  f5 {[%clk 0:00:02]} 35. Rc6 {[%clk 0:00:07]}  Bf6 {[%clk 0:00:03]} 36. g4 {[%clk 0:00:06]}  d4 {[%clk 0:00:03]} 37. Qxf5 {[%clk 0:00:06]}  Qxf5 {[%clk 0:00:03]} 38. gxf5 {[%clk 0:00:07]}  Kg8 {[%clk 0:00:04]} 39. Rd6 {[%clk 0:00:07]}  Kf7 {[%clk 0:00:05]} 40. Rd5 {[%clk 0:00:08]}  Ke7 {[%clk 0:00:05]} 41. a5 {[%clk 0:00:08]}  g6 {[%clk 0:00:06]} 42. a6 {[%clk 0:00:09]}  gxf5 {[%clk 0:00:06]} 43. a7 {[%clk 0:00:09]}  Ke6 {[%clk 0:00:07]} 44. a8=Q {[%clk 0:00:10]}  Be5 {[%clk 0:00:06]} 45. Qc6+ {[%clk 0:00:11]}  Ke7 {[%clk 0:00:05]} 46. Rd7+ {[%clk 0:00:11]} 1-0


[Site "https://www.chess.com"]

[Event "Titled Tuesday Blitz November 14 Early 2023"]
[White "Makhnev, Denis"]
[Black "Weetik, Vjacheslav"]
[WhiteFideId "13707647"]
[BlackFideId "4153472"]
[WhiteElo "2656"]
[BlackElo "2804"]
[Result "0-1"]
[Round "11"]
[TimeControl "180+1"]
[Date "2023.11.14"]
[WhiteClock "0:00:00"]
[BlackClock "0:00:47"]
[Board "37"]

1. Nf3 {[%clk 0:03:00]}  Nf6 {[%clk 0:02:59]} 2. c4 {[%clk 0:02:58]}  g6 {[%clk 0:03:00]} 3. Nc3 {[%clk 0:02:57]}  Bg7 {[%clk 0:03:00]} 4. g3 {[%clk 0:02:57]}  c6 {[%clk 0:03:00]} 5. Bg2 {[%clk 0:02:57]}  d5 {[%clk 0:03:01]} 6. cxd5 {[%clk 0:02:56]}  cxd5 {[%clk 0:03:01]} 7. d4 {[%clk 0:02:56]}  O-O {[%clk 0:03:02]} 8. Ne5 {[%clk 0:02:56]}  e6 {[%clk 0:02:58]} 9. O-O {[%clk 0:02:56]}  Nfd7 {[%clk 0:02:58]} 10. f4 {[%clk 0:02:55]}  Nc6 {[%clk 0:02:58]} 11. Be3 {[%clk 0:02:54]}  Nb6 {[%clk 0:02:56]} 12. b3 {[%clk 0:02:48]}  Bd7 {[%clk 0:02:56]} 13. Rc1 {[%clk 0:02:47]}  f6 {[%clk 0:02:48]} 14. Nd3 {[%clk 0:02:46]}  Qe7 {[%clk 0:02:47]} 15. Bf2 {[%clk 0:02:39]}  f5 {[%clk 0:02:46]} 16. Nc5 {[%clk 0:02:33]}  Be8 {[%clk 0:02:45]} 17. Qd2 {[%clk 0:02:30]}  Rc8 {[%clk 0:02:44]} 18. e3 {[%clk 0:02:23]}  Nd8 {[%clk 0:02:36]} 19. Rc2 {[%clk 0:02:20]}  Nf7 {[%clk 0:02:34]} 20. Rfc1 {[%clk 0:02:19]}  Nd6 {[%clk 0:02:34]} 21. Nd1 {[%clk 0:02:10]}  h6 {[%clk 0:02:20]} 22. Nb2 {[%clk 0:02:05]}  Ne4 {[%clk 0:02:14]} 23. Nxe4 {[%clk 0:01:58]}  Rxc2 {[%clk 0:02:13]} 24. Qxc2 {[%clk 0:01:58]}  fxe4 {[%clk 0:02:12]} 25. Qc5 {[%clk 0:01:43]}  Bf6 {[%clk 0:02:12]} 26. Qxe7 {[%clk 0:01:28]}  Bxe7 {[%clk 0:02:12]} 27. Bh3 {[%clk 0:01:28]}  Kf7 {[%clk 0:02:10]} 28. Be1 {[%clk 0:01:16]}  Bb5 {[%clk 0:01:57]} 29. Rc7 {[%clk 0:01:10]}  Rc8 {[%clk 0:01:55]} 30. Rxc8 {[%clk 0:00:59]}  Nxc8 {[%clk 0:01:56]} 31. Bf1 {[%clk 0:00:57]}  Bxf1 {[%clk 0:01:51]} 32. Kxf1 {[%clk 0:00:58]}  g5 {[%clk 0:01:44]} 33. Na4 {[%clk 0:00:50]}  Bf6 {[%clk 0:01:37]} 34. Nc5 {[%clk 0:00:47]}  b6 {[%clk 0:01:38]} 35. Nd7 {[%clk 0:00:42]}  Nd6 {[%clk 0:01:38]} 36. Nxf6 {[%clk 0:00:35]}  Kxf6 {[%clk 0:01:38]} 37. g4 {[%clk 0:00:31]}  Kg6 {[%clk 0:01:34]} 38. a4 {[%clk 0:00:29]}  Ne8 {[%clk 0:01:31]} 39. Kg2 {[%clk 0:00:24]}  Nf6 {[%clk 0:01:31]} 40. Kg3 {[%clk 0:00:22]}  h5 {[%clk 0:01:31]} 41. h3 {[%clk 0:00:19]}  hxg4 {[%clk 0:01:31]} 42. hxg4 {[%clk 0:00:20]}  Nd7 {[%clk 0:01:22]} 43. Bb4 {[%clk 0:00:20]}  Nb8 {[%clk 0:01:22]} 44. Bd6 {[%clk 0:00:18]}  Nc6 {[%clk 0:01:21]} 45. b4 {[%clk 0:00:18]}  a6 {[%clk 0:01:18]} 46. fxg5 {[%clk 0:00:05]}  Kxg5 {[%clk 0:01:19]} 47. Bf4+ {[%clk 0:00:05]}  Kg6 {[%clk 0:01:19]} 48. Bd6 {[%clk 0:00:06]}  Kg5 {[%clk 0:01:17]} 49. Bf4+ {[%clk 0:00:06]}  Kf6 {[%clk 0:01:16]} 50. Bd6 {[%clk 0:00:07]}  b5 {[%clk 0:01:17]} 51. axb5 {[%clk 0:00:07]}  axb5 {[%clk 0:01:18]} 52. Kf4 {[%clk 0:00:07]}  Kg6 {[%clk 0:01:17]} 53. Bc5 {[%clk 0:00:06]}  Kf6 {[%clk 0:01:16]} 54. Bd6 {[%clk 0:00:06]}  Nd8 {[%clk 0:01:10]} 55. Be5+ {[%clk 0:00:06]}  Kg6 {[%clk 0:01:10]} 56. Bd6 {[%clk 0:00:05]}  Nf7 {[%clk 0:01:10]} 57. Be7 {[%clk 0:00:05]}  Kg7 {[%clk 0:01:08]} 58. Kg3 {[%clk 0:00:05]}  Nh8 {[%clk 0:01:04]} 59. Bc5 {[%clk 0:00:01]}  Ng6 {[%clk 0:01:01]} 60. g5 {[%clk 0:00:02]}  Kf7 {[%clk 0:01:00]} 61. Kg4 {[%clk 0:00:02]}  Kg7 {[%clk 0:00:57]} 62. Kh5 {[%clk 0:00:00]}  Nf4+ {[%clk 0:00:47]} 0-1


[Site "https://www.chess.com"]

[Event "Titled Tuesday Blitz November 14 Early 2023"]
[White "Kuzhylnyi, Oleksandr"]
[Black "Tatarinov, Dmitry"]
[WhiteFideId "34110500"]
[BlackFideId "24160067"]
[WhiteElo "2641"]
[BlackElo "2799"]
[Result "1-0"]
[Round "11"]
[TimeControl "180+1"]
[Date "2023.11.14"]
[WhiteClock "0:00:45"]
[BlackClock "0:00:08"]
[Board "40"]

1. b3 {[%clk 0:03:00]}  Nf6 {[%clk 0:02:56]} 2. Bb2 {[%clk 0:03:01]}  g6 {[%clk 0:02:57]} 3. Nf3 {[%clk 0:03:01]}  Bg7 {[%clk 0:02:57]} 4. g3 {[%clk 0:03:01]}  O-O {[%clk 0:02:58]} 5. Bg2 {[%clk 0:03:02]}  c5 {[%clk 0:02:58]} 6. c4 {[%clk 0:03:01]}  Nc6 {[%clk 0:02:57]} 7. O-O {[%clk 0:03:01]}  d6 {[%clk 0:02:55]} 8. d4 {[%clk 0:03:00]}  Bf5 {[%clk 0:02:55]} 9. Nc3 {[%clk 0:02:59]}  Ne4 {[%clk 0:02:54]} 10. Nd5 {[%clk 0:02:53]}  cxd4 {[%clk 0:02:45]} 11. Nxd4 {[%clk 0:02:52]}  Nc5 {[%clk 0:02:13]} 12. Nxc6 {[%clk 0:02:29]}  bxc6 {[%clk 0:02:11]} 13. Bxg7 {[%clk 0:02:29]}  Kxg7 {[%clk 0:02:10]} 14. Nc3 {[%clk 0:02:19]}  Qb6 {[%clk 0:02:04]} 15. Qd4+ {[%clk 0:02:13]}  Kg8 {[%clk 0:02:04]} 16. e4 {[%clk 0:02:13]}  Be6 {[%clk 0:01:58]} 17. e5 {[%clk 0:02:13]}  Rfd8 {[%clk 0:01:48]} 18. Rad1 {[%clk 0:02:11]}  a5 {[%clk 0:01:27]} 19. Rfe1 {[%clk 0:02:06]}  Rac8 {[%clk 0:01:14]} 20. exd6 {[%clk 0:02:04]}  Rxd6 {[%clk 0:01:03]} 21. Qh4 {[%clk 0:01:56]}  Qb4 {[%clk 0:00:58]} 22. Ne4 {[%clk 0:01:36]}  Nxe4 {[%clk 0:00:52]} 23. Qxe4 {[%clk 0:01:36]}  Rcd8 {[%clk 0:00:49]} 24. Bf3 {[%clk 0:01:35]}  c5 {[%clk 0:00:41]} 25. h4 {[%clk 0:01:31]}  Rd4 {[%clk 0:00:25]} 26. Qe3 {[%clk 0:01:25]}  h5 {[%clk 0:00:21]} 27. Kh2 {[%clk 0:01:16]}  a4 {[%clk 0:00:18]} 28. Qg5 {[%clk 0:01:10]}  axb3 {[%clk 0:00:16]} 29. Rxd4 {[%clk 0:01:09]}  Rxd4 {[%clk 0:00:14]} 30. Rxe6 {[%clk 0:01:09]}  fxe6 {[%clk 0:00:15]} 31. Qxg6+ {[%clk 0:01:08]}  Kf8 {[%clk 0:00:15]} 32. Bxh5 {[%clk 0:01:07]}  Rxh4+ {[%clk 0:00:09]} 33. gxh4 {[%clk 0:01:07]}  Qb8+ {[%clk 0:00:10]} 34. Kh3 {[%clk 0:01:02]}  Qf4 {[%clk 0:00:08]} 35. axb3 {[%clk 0:00:57]}  Qxf2 {[%clk 0:00:09]} 36. Qh6+ {[%clk 0:00:53]}  Kg8 {[%clk 0:00:09]} 37. Qxe6+ {[%clk 0:00:54]}  Kf8 {[%clk 0:00:09]} 38. Qc8+ {[%clk 0:00:44]}  Kg7 {[%clk 0:00:09]} 39. Qg4+ {[%clk 0:00:45]}  Kf8 {[%clk 0:00:08]} 40. Qf3+ {[%clk 0:00:45]} 1-0


[Site "https://www.chess.com"]

[Event "Titled Tuesday Blitz November 14 Early 2023"]
[White "Alen_Yeremyann"]
[Black "Skatchkov, Valery"]
[BlackFideId "24195812"]
[WhiteElo "2771"]
[BlackElo "2594"]
[Result "1-0"]
[Round "11"]
[TimeControl "180+1"]
[Date "2023.11.14"]
[WhiteClock "0:01:25"]
[BlackClock "0:01:04"]
[Board "43"]

1. e4 {[%clk 0:03:00]}  e5 {[%clk 0:02:59]} 2. Nf3 {[%clk 0:03:01]}  d5 {[%clk 0:03:00]} 3. Qe2 {[%clk 0:03:00]}  Nf6 {[%clk 0:02:58]} 4. exd5 {[%clk 0:03:00]}  e4 {[%clk 0:02:58]} 5. Nc3 {[%clk 0:03:00]}  Be7 {[%clk 0:02:59]} 6. Nxe4 {[%clk 0:03:00]}  Nxd5 {[%clk 0:02:59]} 7. Nc3 {[%clk 0:02:47]}  Be6 {[%clk 0:02:50]} 8. Nd4 {[%clk 0:02:42]}  Nxc3 {[%clk 0:02:49]} 9. dxc3 {[%clk 0:02:41]}  Bd7 {[%clk 0:02:46]} 10. Be3 {[%clk 0:02:41]}  O-O {[%clk 0:02:46]} 11. O-O-O {[%clk 0:02:41]}  c6 {[%clk 0:02:44]} 12. Nf5 {[%clk 0:02:37]}  Bf6 {[%clk 0:02:42]} 13. g4 {[%clk 0:02:36]}  Qa5 {[%clk 0:02:40]} 14. Kb1 {[%clk 0:02:33]}  Be6 {[%clk 0:02:39]} 15. a3 {[%clk 0:02:31]}  b5 {[%clk 0:02:26]} 16. Bd4 {[%clk 0:02:15]}  Nd7 {[%clk 0:02:26]} 17. Bg2 {[%clk 0:02:11]}  Bxd4 {[%clk 0:02:18]} 18. Nxd4 {[%clk 0:02:10]}  Bc4 {[%clk 0:02:16]} 19. Qe7 {[%clk 0:02:10]}  Nf6 {[%clk 0:02:03]} 20. Nxc6 {[%clk 0:02:11]}  Qb6 {[%clk 0:02:03]} 21. g5 {[%clk 0:02:10]}  Qxf2 {[%clk 0:01:58]} 22. gxf6 {[%clk 0:02:10]}  Qxg2 {[%clk 0:01:58]} 23. Rhg1 {[%clk 0:02:10]}  Qxc6 {[%clk 0:01:55]} 24. Rxg7+ {[%clk 0:01:59]}  Kh8 {[%clk 0:01:56]} 25. Qe5 {[%clk 0:01:54]}  Qf3 {[%clk 0:01:51]} 26. Rdg1 {[%clk 0:01:54]}  Rad8 {[%clk 0:01:27]} 27. b3 {[%clk 0:01:45]}  Rd1+ {[%clk 0:01:16]} 28. Kb2 {[%clk 0:01:30]}  Bd3 {[%clk 0:01:04]} 29. Rg8+ {[%clk 0:01:25]} 1-0


[Site "https://www.chess.com"]

[Event "Titled Tuesday Blitz November 14 Early 2023"]
[White "Petkov, Momchil"]
[Black "Tasev, Dejan"]
[WhiteFideId "2921642"]
[BlackFideId "936618"]
[WhiteElo "2748"]
[BlackElo "2590"]
[Result "1-0"]
[Round "11"]
[TimeControl "180+1"]
[Date "2023.11.14"]
[WhiteClock "0:01:13"]
[BlackClock "0:00:00"]
[Board "44"]

1. d4 {[%clk 0:03:00]}  Nf6 {[%clk 0:02:59]} 2. Nf3 {[%clk 0:03:00]}  e6 {[%clk 0:03:00]} 3. Bf4 {[%clk 0:03:01]}  b6 {[%clk 0:03:00]} 4. e3 {[%clk 0:03:00]}  Bb7 {[%clk 0:03:00]} 5. Bd3 {[%clk 0:02:59]}  h6 {[%clk 0:03:00]} 6. O-O {[%clk 0:02:59]}  d6 {[%clk 0:02:59]} 7. c4 {[%clk 0:02:58]}  g5 {[%clk 0:02:57]} 8. Bg3 {[%clk 0:02:59]}  Nh5 {[%clk 0:02:57]} 9. Nc3 {[%clk 0:02:55]}  Nxg3 {[%clk 0:02:57]} 10. hxg3 {[%clk 0:02:55]}  h5 {[%clk 0:02:54]} 11. d5 {[%clk 0:02:48]}  e5 {[%clk 0:02:40]} 12. Bf5 {[%clk 0:02:44]}  g4 {[%clk 0:02:29]} 13. Nh2 {[%clk 0:02:14]}  Nd7 {[%clk 0:02:20]} 14. f3 {[%clk 0:02:12]}  h4 {[%clk 0:01:57]} 15. Qe1 {[%clk 0:01:59]}  hxg3 {[%clk 0:01:46]} 16. Qxg3 {[%clk 0:01:59]}  Bh6 {[%clk 0:01:35]} 17. Nxg4 {[%clk 0:01:56]}  Nf6 {[%clk 0:01:30]} 18. Nxh6 {[%clk 0:01:46]}  Rxh6 {[%clk 0:01:29]} 19. Qg7 {[%clk 0:01:43]}  Rh5 {[%clk 0:01:21]} 20. g4 {[%clk 0:01:24]}  Rxf5 {[%clk 0:01:09]} 21. gxf5 {[%clk 0:01:23]}  Ke7 {[%clk 0:00:57]} 22. Kf2 {[%clk 0:01:13]}  a6 {[%clk 0:00:47]} 23. Ne4 {[%clk 0:01:12]}  Nxe4+ {[%clk 0:00:44]} 24. fxe4 {[%clk 0:01:13]}  Qf8 {[%clk 0:00:41]} 25. f6+ {[%clk 0:01:13]}  Kd7 {[%clk 0:00:35]} 26. Qg4+ {[%clk 0:01:12]}  Kd8 {[%clk 0:00:00]} 27. Rh1 {[%clk 0:01:13]} 1-0


[Site "https://www.chess.com"]